bitfinex-derivatives/quotes_ETHF0:USTF0_20240907
["timestamp","ask_amount","ask_price","bid_price","bid_amount"]
[1725694035315,0.43715,2288.1,2287.9,0.3709]
[1725694035515,0.43715,2288.1,2288.0,4.3704]
[1725694035811,0.43717,2288.0,2287.9,4.7413]
[1725694036015,0.43717,2288.0,2287.9,0.3709]
[1725694036210,0.43717,2288.0,2287.9,4.7413]
[1725694037610,0.43717,2288.0,2287.9,4.3704]
[1725694037812,0.43719,2287.9,2287.8,3.2078]
[1725694038307,0.43719,2287.9,2287.6,0.367]
[1725694038308,0.43722,2287.7,2287.6,0.367]
[1725694038725,0.43722,2287.7,2287.6,4.7382]
[1725694039022,1.53029,2287.7,2287.6,4.3712]
[1725694039227,1.53029,2287.7,2287.2,3.5651]
[1725694039228,1.09307,2287.7,2287.2,3.5651]
[1725694039431,0.4373,2287.3,2287.2,3.5885]
[1725694039626,0.4373,2287.3,2287.2,7.9605]
[1725694040421,0.4373,2287.3,2287.2,3.2078]
[1725694041020,1.53056,2287.3,2287.2,3.2078]
[1725694041229,0.4373,2287.3,2287.2,3.2078]
[1725694041426,1.16225,2287.6,2287.2,7.5798]
[1725694041623,0.43727,2287.5,2287.2,7.5798]
[1725694041830,0.43727,2287.5,2287.2,3.2078]
[1725694042528,0.43728,2287.4,2287.2,3.2078]
[1725694042736,0.43728,2287.4,2287.3,4.372]
[1725694043321,0.43729,2287.4,2287.2,3.2078]
[1725694043931,0.43729,2287.4,2287.2,7.5798]
[1725694044428,0.43729,2287.4,2287.2,3.2078]
[1725694044633,0.43727,2287.5,2287.3,4.372]
[1725694044826,0.43728,2287.4,2287.2,3.2078]
[1725694045327,0.43728,2287.4,2287.3,4.372]
[1725694045725,0.3636,2287.6,2287.2,3.2078]
[1725694046230,0.43728,2287.4,2287.2,3.2078]
[1725694046622,0.4373,2287.3,2287.2,3.2078]
[1725694046929,1.53056,2287.3,2287.2,3.2078]
[1725694047633,0.4373,2287.3,2287.2,3.2078]
[1725694049335,0.43727,2287.5,2287.2,7.5798]
[1725694049527,0.4373,2287.3,2287.2,3.2078]
[1725694050027,0.43738,2286.9,2286.8,3.2078]
[1725694050335,0.43737,2287.0,2286.8,3.2078]
[1725694050726,0.43737,2287.0,2286.9,0.3839]
[1725694051626,0.43738,2286.9,2286.8,3.2078]
[1725694052129,0.43737,2287.0,2286.8,3.2078]
[1725694052522,0.364,2287.2,2286.8,3.2078]
[1725694052724,4.54727,2287.5,2287.1,3.64513]
[1725694052930,1.09301,2287.9,2287.2,0.7347]
[1725694052931,4.11,2287.9,2287.2,0.7347]
[1725694053133,0.43729,2287.4,2287.2,0.7347]
[1725694053927,0.43727,2287.5,2287.2,0.7347]
[1725694054328,4.11,2288.2,2287.4,6.2278]
[1725694054525,4.11,2288.2,2287.3,4.372]
[1725694054526,0.7458,2288.7,2288.0,3.2078]
[1725694054829,0.43705,2288.6,2288.3,3.2078]
[1725694055330,3.02,2289.0,2288.4,4.3696]
[1725694055638,1.0925,2288.9,2288.4,3.2078]
[1725694056228,0.43707,2288.5,2288.4,3.2078]
[1725694057729,0.43706,2288.6,2288.4,3.2078]
[1725694058730,1.0924,2289.1,2288.4,3.2078]
[1725694058932,0.43704,2288.7,2288.4,3.2078]
[1725694059436,0.43705,2288.6,2288.4,3.2078]
[1725694060537,0.4371,2288.4,2288.1,0.7347]
[1725694060736,0.43711,2288.3,2288.2,3.2078]
[1725694061131,0.43711,2288.3,2288.1,3.5698]
[1725694061536,0.43713,2288.2,2288.1,3.5698]
[1725694062440,0.43713,2288.2,2288.1,0.362]
[1725694063343,0.43716,2288.1,2287.8,3.2078]
[1725694064146,0.43717,2288.0,2287.8,3.2078]
[1725694064332,1.09273,2288.4,2287.8,3.2078]
[1725694064333,0.43716,2288.1,2287.8,3.2078]
[1725694064537,0.43715,2288.1,2287.8,3.2078]
[1725694064739,0.43718,2288.0,2287.8,3.2078]
[1725694065444,0.43719,2287.9,2287.8,3.2078]
[1725694066135,5.90136,2287.9,2287.8,3.2078]
[1725694069247,0.43726,2287.6,2287.4,0.3837]
[1725694069450,0.43726,2287.6,2287.4,3.5915]
[1725694069643,0.43719,2287.9,2287.4,3.5915]
[1725694069644,0.43726,2287.5,2287.4,3.5915]
[1725694069845,0.43726,2287.5,2287.4,0.3837]
[1725694070245,4.11,2289.1,2287.7,3.2078]
[1725694070549,0.43695,2289.2,2288.6,3.2078]
[1725694070748,0.22235148,2289.4,2288.9,3.2078]
[1725694070947,0.43693,2289.3,2288.9,3.2078]
[1725694071150,0.59712416,2289.5,2288.9,3.2078]
[1725694071345,0.43695,2289.2,2288.9,3.2078]
[1725694073153,1.09227,2289.4,2288.9,3.2078]
[1725694073346,0.43697,2289.1,2288.9,3.2078]
[1725694073950,0.43698,2289.0,2288.9,3.2078]
[1725694074342,4.80578,2289.0,2288.9,3.2078]
[1725694074545,0.43704,2288.7,2288.6,3.2078]
[1725694074843,4.80578,2289.0,2288.6,3.2078]
[1725694074844,0.43699,2289.0,2288.6,3.2078]
[1725694075550,0.43701,2288.9,2288.6,3.2078]
[1725694077350,0.43701,2288.8,2288.6,3.2078]
[1725694077854,0.43701,2288.9,2288.6,3.2078]
[1725694079357,0.43699,2289.0,2288.6,3.2078]
[1725694079950,1.09235,2289.2,2288.6,3.2078]
[1725694080252,0.43699,2289.0,2288.6,3.2078]
[1725694080848,0.43693,2289.3,2288.6,3.64484]
[1725694081048,0.43693,2289.3,2288.9,3.2078]
[1725694081450,0.43697,2289.1,2288.9,3.2078]
[1725694081943,0.3634,2289.4,2288.9,3.2078]
[1725694081944,0.43698,2289.0,2288.9,3.2078]
[1725694082149,0.43698,2289.0,2288.4,0.7368]
[1725694082150,0.437,2288.9,2288.6,3.2078]
[1725694082756,0.43702,2288.8,2288.6,3.2078]
[1725694083050,0.43701,2288.9,2288.6,3.2078]
[1725694083857,1.09235,2289.2,2288.6,3.2078]
[1725694084165,0.43701,2288.9,2288.6,3.2078]
[1725694085259,0.43701,2288.8,2288.6,3.2078]
[1725694085555,0.3634,2289.4,2288.6,3.2078]
[1725694085556,0.43697,2289.1,2288.6,3.2078]
[1725694085858,0.43697,2289.1,2288.9,3.2078]
[1725694086355,0.43698,2289.0,2288.9,3.2078]
[1725694087252,1.45569,2289.4,2288.6,3.2078]
[1725694087453,0.43696,2289.1,2288.9,3.2078]
[1725694087961,0.43695,2289.2,2288.9,3.2078]
[1725694088252,0.43697,2289.1,2288.6,3.2078]
[1725694088657,0.43695,2289.2,2288.6,3.2078]
[1725694089064,0.43695,2289.2,2288.9,3.2078]
[1725694090155,0.43695,2289.2,2289.0,0.3661]
[1725694090350,0.43693,2289.3,2289.0,0.3661]
[1725694091062,0.43692,2289.3,2289.0,0.3661]
[1725694091263,0.43692,2289.3,2289.0,0.7507]
[1725694091654,0.43694,2289.2,2289.0,0.7507]
[1725694092458,0.43693,2289.3,2289.0,0.7507]
[1725694092658,0.43694,2289.2,2289.0,0.7507]
[1725694094867,0.43696,2289.1,2289.0,0.7507]
[1725694095063,0.43696,2289.1,2289.0,0.3661]
[1725694095267,0.43699,2289.0,2288.6,3.2078]
[1725694097359,1.09233,2289.3,2288.6,3.64485]
[1725694097360,0.43697,2289.1,2288.6,3.64485]
[1725694097563,1.09233,2289.3,2288.6,3.2078]
[1725694097861,0.43697,2289.1,2288.9,3.2078]
[1725694098062,0.43697,2289.1,2289.0,0.3625]
[1725694099968,0.43698,2289.0,2288.6,3.2078]
[1725694100170,1.09259,2288.7,2288.2,3.5703]
[1725694100363,0.43711,2288.3,2288.2,3.5703]
[1725694102467,1.09259,2288.7,2288.2,3.5703]
[1725694102664,0.01607388,2288.6,2288.2,3.5703]
[1725694103063,3.2078,2288.9,2288.2,4.00742]
[1725694103064,0.43703,2288.7,2288.2,4.00742]
[1725694103262,3.2078,2288.9,2288.2,3.5703]
[1725694103471,0.43705,2288.6,2288.2,3.5703]
[1725694103664,0.43705,2288.7,2288.2,3.5703]
[1725694103865,0.43705,2288.7,2288.2,3.9264]
[1725694105173,0.43705,2288.7,2288.2,4.36353]
[1725694105473,0.43702,2288.8,2288.3,0.4371]
[1725694105773,0.43701,2288.9,2288.5,3.2078]
[1725694106167,0.43699,2289.0,2288.5,3.64487]
[1725694106374,0.437,2288.9,2288.5,3.2078]
[1725694106868,0.43698,2289.0,2288.8,3.2078]
[1725694107077,0.43698,2289.0,2288.9,0.3694]
[1725694108772,0.43705,2288.6,2288.5,3.5772]
[1725694117079,0.80882,2288.8,2288.5,3.5772]
[1725694117281,0.43704,2288.7,2288.5,3.5772]
[1725694117682,0.3849,2289.0,2288.5,3.5772]
[1725694117884,0.43703,2288.7,2288.5,3.5772]
[1725694118381,0.43703,2288.8,2288.5,3.5772]
[1725694118575,0.43703,2288.7,2288.5,3.5772]
[1725694120083,0.43705,2288.6,2288.5,3.5772]
[1725694120286,0.43704,2288.7,2288.5,3.5772]
[1725694120585,0.43705,2288.6,2288.5,3.5772]
[1725694120781,1.52969,2288.6,2288.5,3.2078]
[1725694120977,5.89929,2288.6,2288.5,3.2078]
[1725694121283,0.43705,2288.6,2288.5,3.2078]
[1725694121684,4.80665,2288.6,2288.5,3.2078]
[1725694121885,5.91536308,2288.6,2288.5,3.2078]
[1725694122087,0.43713,2288.2,2288.1,0.3626]
[1725694125479,0.3619,2288.5,2288.1,0.3626]
[1725694125984,0.4371,2288.4,2288.1,0.3626]
[1725694126383,0.79898,2288.5,2288.1,0.3626]
[1725694126586,0.43709,2288.4,2288.1,0.3626]
[1725694126891,0.79899,2288.5,2288.1,0.3626]
[1725694127189,0.43709,2288.4,2288.1,0.3626]
[1725694127377,0.3619,2288.5,2288.1,0.3626]
[1725694127785,0.43711,2288.3,2288.1,0.3626]
[1725694128193,0.4371,2288.4,2288.1,0.3626]
[1725694128693,0.43712,2288.3,2288.1,0.3626]
[1725694129597,0.4371,2288.4,2288.1,0.3626]
[1725694130092,0.43711,2288.3,2288.1,0.3626]
[1725694130593,1.45461,2288.5,2288.0,3.2078]
[1725694130790,0.43712,2288.3,2288.0,3.2078]
[1725694131793,1.45461,2288.5,2288.0,3.2078]
[1725694132087,0.43712,2288.3,2287.9,0.82178]
[1725694132398,0.43712,2288.3,2288.2,3.2078]
[1725694133086,4.80752,2288.3,2288.2,3.2078]
[1725694133682,0.43712,2288.3,2288.2,3.2078]
[1725694134191,0.4371,2288.4,2288.2,3.2078]
[1725694134393,0.43711,2288.3,2288.2,3.2078]
[1725694136691,0.43711,2288.4,2288.2,3.2078]
[1725694136888,0.43711,2288.3,2288.2,3.2078]
[1725694139998,0.4371,2288.4,2288.2,3.2078]
[1725694140494,0.43711,2288.3,2288.2,3.2078]
[1725694140897,0.4371,2288.4,2288.2,3.2078]
[1725694141194,4.11,2288.8,2288.3,4.3704]
[1725694141395,4.11,2289.2,2288.7,3.2078]
[1725694141595,4.54695,2289.2,2289.0,3.2078]
[1725694141800,0.43692,2289.3,2289.0,3.2078]
[1725694144392,0.82891,2289.4,2289.0,3.2078]
[1725694144799,0.43693,2289.3,2289.0,3.2078]
[1725694145903,0.82891,2289.4,2289.0,3.2078]
[1725694146501,0.43692,2289.3,2289.0,3.2078]
[1725694146802,0.43695,2289.2,2289.0,3.2078]
[1725694147903,0.43693,2289.3,2289.0,3.2078]
[1725694148101,0.43694,2289.2,2289.0,3.2078]
[1725694149408,0.392,2289.4,2289.0,3.2078]
[1725694150206,0.43694,2289.2,2289.0,3.2078]
[1725694150505,0.43696,2289.1,2289.0,3.2078]
[1725694150707,0.43695,2289.2,2289.0,3.2078]
[1725694151710,0.43696,2289.1,2289.0,3.2078]
[1725694151908,0.43695,2289.2,2289.0,3.2078]
[1725694152202,0.43696,2289.1,2289.0,3.2078]
[1725694152405,0.43696,2289.2,2289.0,3.2078]
[1725694152803,0.392,2289.4,2289.0,3.2078]
[1725694153004,0.43696,2289.1,2289.0,3.2078]
[1725694154911,0.43696,2289.1,2288.7,0.3749]
[1725694154912,4.3688,2289.1,2288.7,0.3749]
[1725694155208,0.43703,2288.8,2288.6,3.5739]
[1725694155409,1.84275,2289.0,2288.6,3.5739]
[1725694155715,0.43703,2288.8,2288.6,3.5739]
[1725694155908,0.3925,2288.9,2288.6,3.5739]
[1725694156104,0.43703,2288.7,2288.6,3.5739]
[1725694157203,0.43703,2288.8,2288.6,3.5739]
[1725694157909,0.43703,2288.7,2288.6,3.5739]
[1725694158113,0.43703,2288.8,2288.6,3.5739]
[1725694158810,0.43703,2288.7,2288.6,3.5739]
[1725694161010,4.80663,2288.7,2288.6,3.2078]
[1725694161215,0.43709,2288.4,2288.3,3.2078]
[1725694162304,0.43708,2288.5,2288.3,7.5774]
[1725694162510,0.3925,2288.9,2288.3,3.2078]
[1725694162715,0.43705,2288.7,2288.6,3.2078]
[1725694164016,0.43703,2288.7,2288.6,3.2078]
[1725694164525,0.43702,2288.8,2288.6,3.2078]
[1725694164712,0.43702,2288.8,2288.7,0.3877]
[1725694165214,0.3925,2288.9,2288.7,0.3877]
[1725694165215,0.82951,2288.9,2288.7,0.3877]
[1725694165416,0.3925,2288.9,2288.7,0.3877]
[1725694165714,0.43701,2288.8,2288.7,0.3877]
[1725694165920,0.82951,2288.9,2288.7,0.3877]
[1725694166820,0.43701,2288.9,2288.7,0.3877]
[1725694167020,4.54699,2289.0,2288.7,0.3877]
[1725694167520,4.54699,2289.0,2288.9,3.2078]
[1725694168326,0.43699,2289.0,2288.9,3.2078]
[1725694172318,0.43701,2288.8,2288.7,0.3877]
[1725694176317,1.0924,2289.1,2288.7,3.5955]
[1725694176524,0.43701,2288.8,2288.7,3.5955]
[1725694179315,1.4627,2289.1,2288.7,0.3877]
[1725694179316,0.437,2288.9,2288.7,0.3877]
[1725694179523,0.437,2288.9,2288.7,3.5955]
[1725694183523,0.43701,2288.8,2288.7,3.5955]
[1725694185013,0.43701,2288.8,2288.7,0.3877]
[1725694185221,4.3688,2288.8,2288.5,0.3575]
[1725694185423,1.09252,2288.9,2288.6,3.5665]
[1725694185424,0.43704,2288.7,2288.6,3.5665]
[1725694186021,0.43703,2288.8,2288.6,3.5665]
[1725694186420,0.43703,2288.7,2288.6,3.5665]
[1725694187629,1.26,2289.0,2288.6,3.5665]
[1725694187827,0.43702,2288.8,2288.6,3.5665]
[1725694188727,1.0924,2289.1,2288.6,3.5665]
[1725694188925,0.43701,2288.9,2288.6,3.5665]
[1725694189526,0.43702,2288.8,2288.6,3.5665]
[1725694191434,0.43703,2288.7,2288.6,3.5665]
[1725694191735,1.09245,2289.0,2288.6,3.5665]
[1725694191928,0.43703,2288.7,2288.6,3.5665]
[1725694195936,0.43703,2288.7,2288.6,7.9361]
[1725694196131,0.43703,2288.7,2288.6,3.5665]
[1725694196929,0.43703,2288.7,2288.6,7.9361]
[1725694197436,0.43703,2288.7,2288.6,3.5665]
[1725694198736,1.44976,2289.2,2288.6,3.5665]
[1725694199032,0.43698,2289.0,2288.9,3.2078]
[1725694199237,0.43698,2289.0,2288.9,3.594]
[1725694200327,0.43703,2288.7,2288.6,1.13100371]
[1725694200537,1.09273,2288.4,2288.2,1.68625458]
[1725694200738,1.09273,2288.4,2288.0,3.5713]
[1725694200739,0.43715,2288.1,2288.0,3.5713]
[1725694201528,0.43714,2288.2,2288.0,3.5713]
[1725694201939,1.31597704,2288.3,2288.0,3.5713]
[1725694201940,0.43715,2288.1,2288.0,3.5713]
[1725694202134,0.43714,2288.2,2288.0,3.5713]
[1725694202635,0.43715,2288.1,2288.0,3.5713]
[1725694202824,0.43715,2288.1,2288.0,3.2078]
[1725694203223,2.57597704,2288.3,2288.0,3.2078]
[1725694203423,3.01309704,2288.3,2288.0,3.2078]
[1725694203838,3.2078,2288.6,2288.0,8.8382]
[1725694204038,0.43708,2288.5,2288.1,0.3798]
[1725694204233,1.26,2288.6,2288.2,0.364]
[1725694204540,0.4371,2288.4,2288.2,0.364]
[1725694204839,0.43708,2288.5,2288.3,3.2078]
[1725694205137,4.11,2288.7,2288.3,3.2078]
[1725694205341,6.997,2289.0,2288.6,4.4678]
[1725694205342,4.11,2289.0,2288.6,4.4678]
[1725694205532,6.997,2289.4,2288.9,3.2078]
[1725694205533,0.43695,2289.2,2288.9,3.2078]
[1725694206740,0.43696,2289.1,2288.9,3.2078]
[1725694207140,0.43695,2289.2,2288.9,3.2078]
[1725694208337,0.43693,2289.3,2288.9,3.2078]
[1725694208542,0.43694,2289.2,2288.9,3.2078]
[1725694208938,0.22047791,2289.4,2288.9,3.2078]
[1725694209146,0.43692,2289.3,2288.9,3.2078]
[1725694209338,0.65738791,2289.4,2288.9,3.2078]
[1725694209740,4.8865,2289.7,2289.2,3.2078]
[1725694209942,0.83165,2289.7,2289.3,0.7533]
[1725694210146,0.43687,2289.6,2289.3,0.7533]
[1725694210346,0.43689,2289.5,2289.3,0.7533]
[1725694210541,0.3948,2289.7,2289.3,0.7533]
[1725694210744,0.43689,2289.5,2289.3,0.7533]
[1725694213246,0.43687,2289.6,2289.3,0.7533]
[1725694213746,0.43688,2289.5,2289.3,0.7533]
[1725694213945,0.3948,2289.7,2289.3,0.7533]
[1725694214347,0.43686,2289.6,2289.3,0.7533]
[1725694215152,0.43686,2289.6,2289.3,0.363]
[1725694215655,0.3948,2289.7,2289.3,0.363]
[1725694216559,4.02852,2289.9,2289.3,0.79992]
[1725694216859,0.43679,2290.0,2289.6,3.2078]
[1725694217062,0.43681,2289.9,2289.6,3.2078]
[1725694217253,1.1753,2290.0,2289.6,3.2078]
[1725694217660,0.43681,2289.9,2289.6,3.2078]
[1725694217955,1.1753,2290.0,2289.6,3.2078]
[1725694218157,0.3649,2290.0,2289.6,3.2078]
[1725694218359,1.7680439,2290.3,2289.9,3.6446]
[1725694218559,0.43677,2290.1,2290.0,0.7484]
[1725694218758,0.4528119,2290.2,2290.0,0.7484]
[1725694219356,0.0160619,2290.2,2290.0,0.7484]
[1725694219556,0.4528119,2290.2,2290.0,0.7484]
[1725694219958,0.0160619,2290.2,2290.0,0.7484]
[1725694220362,0.0160619,2290.2,2290.0,0.3763]
[1725694220567,0.4528119,2290.2,2290.0,0.3763]
[1725694220769,0.43677,2290.1,2290.0,0.3763]
[1725694220968,0.4528219,2290.2,2290.0,0.3763]
[1725694221672,0.43677,2290.1,2290.0,0.3763]
[1725694222566,0.0160619,2290.2,2290.0,0.3763]
[1725694222965,0.0160619,2290.2,2290.1,0.3816]
[1725694223267,1.7680439,2290.3,2290.1,0.3816]
[1725694223268,1.7680439,2290.3,2290.1,5.18472]
[1725694223570,4.11,2290.9,2290.5,0.43663]
[1725694223866,0.43655,2291.0,2290.8,3.2078]
[1725694224065,0.43654,2291.1,2290.8,3.2078]
[1725694224469,0.43657,2290.9,2290.8,3.2078]
[1725694224771,0.3924,2291.2,2290.8,3.2078]
[1725694224772,0.43652,2291.2,2290.8,3.2078]
[1725694224971,4.11,2291.6,2291.1,3.2078]
[1725694225168,0.21527838,2291.9,2291.4,3.2078]
[1725694225369,0.43643,2291.7,2291.4,3.2078]
[1725694225668,0.43641,2291.8,2291.4,3.2078]
[1725694226074,4.11,2292.0,2291.4,3.2078]
[1725694226262,3.47494106,2292.2,2291.4,3.2078]
[1725694226564,0.43642,2291.7,2291.5,0.389]
[1725694226770,3.02,2291.9,2291.5,0.389]
[1725694226967,0.43644,2291.6,2291.5,0.389]
[1725694227373,0.43646,2291.5,2291.4,3.2078]
[1725694227670,0.43649,2291.4,2291.2,3.5787]
[1725694228065,0.43646,2291.5,2291.2,3.5787]
[1725694228266,3.02,2291.7,2291.2,3.2078]
[1725694228267,0.43649,2291.3,2291.2,3.2078]
[1725694228463,0.43653,2291.1,2291.0,0.389]
[1725694228771,4.11,2291.7,2291.0,0.35490023]
[1725694229075,0.43646,2291.5,2291.2,3.2078]
[1725694229261,0.3908,2291.8,2291.2,3.2078]
[1725694229871,3.4064,2291.9,2291.2,3.2078]
[1725694230077,0.43645,2291.6,2291.2,3.2078]
[1725694230976,0.43646,2291.5,2291.2,3.2078]
[1725694231477,0.43644,2291.6,2291.3,4.364]
[1725694231668,11.4915,2292.0,2291.3,0.3786]
[1725694231863,11.4915,2292.0,2291.5,3.2078]
[1725694231864,0.4364,2291.8,2291.5,3.2078]
[1725694232069,0.43642,2291.7,2291.6,0.3632]
[1725694234268,0.43649,2291.3,2291.2,3.2078]
[1725694234468,0.43647,2291.5,2290.9,6.66437]
[1725694234780,0.3605,2291.6,2290.9,6.2278]
[1725694234968,0.43652,2291.2,2290.9,3.2078]
[1725694235565,1.09115,2291.5,2290.9,3.2078]
[1725694235765,0.3605,2291.6,2290.9,3.2078]
[1725694235766,0.43655,2291.1,2290.9,3.2078]
[1725694236175,1.09119,2291.4,2291.0,4.3648]
[1725694236176,0.43652,2291.2,2291.0,4.3648]
[1725694236478,0.3607,2291.5,2290.9,3.2078]
[1725694236479,0.4365,2291.3,2290.9,3.2078]
[1725694237370,0.3607,2291.5,2290.9,3.2078]
[1725694237680,0.43643,2291.7,2291.2,6.2278]
[1725694237978,0.43643,2291.7,2291.3,0.3932]
[1725694238480,4.4729,2291.9,2291.3,0.3932]
[1725694238683,0.43644,2291.6,2291.3,0.3932]
[1725694239071,1.09104,2291.8,2291.3,0.3932]
[1725694239276,0.43647,2291.5,2291.3,0.3932]
[1725694239882,0.43647,2291.4,2291.3,0.3932]
[1725694240079,0.43649,2291.3,2291.2,3.2078]
[1725694240374,3.3829,2291.9,2291.2,3.2078]
[1725694240375,1.4539,2291.9,2291.2,3.2078]
[1725694240581,0.43648,2291.4,2291.2,3.2078]
[1725694240780,1.09105,2291.7,2291.2,3.2078]
[1725694240984,0.43649,2291.4,2291.2,3.2078]
[1725694241378,0.43649,2291.3,2291.2,3.2078]
[1725694241887,4.46753,2291.6,2291.0,0.3932]
[1725694242181,0.82268,2291.4,2291.1,3.2078]
[1725694242477,0.82269,2291.4,2291.1,3.2078]
[1725694242870,0.43649,2291.3,2291.1,3.2078]
[1725694243376,0.43651,2291.2,2291.1,3.2078]
[1725694243775,0.43651,2291.2,2291.1,7.5726]
[1725694244172,0.43651,2291.3,2291.1,7.5726]
[1725694244376,0.43651,2291.2,2291.1,3.2078]
[1725694244568,0.43651,2291.2,2291.0,0.3932]
[1725694247481,0.3862,2291.4,2291.1,3.2078]
[1725694247881,0.82268,2291.4,2291.1,3.2078]
[1725694248079,0.3862,2291.4,2291.1,3.2078]
[1725694248386,0.81886,2291.5,2291.1,3.2078]
[1725694248583,0.43648,2291.4,2291.1,3.2078]
[1725694248789,0.81887,2291.5,2291.1,3.2078]
[1725694249390,0.81886,2291.5,2291.1,3.2078]
[1725694249685,0.43648,2291.4,2291.1,3.2078]
[1725694250482,0.4365,2291.3,2291.1,3.2078]
[1725694250678,0.43649,2291.4,2291.1,3.2078]
[1725694251984,0.3824,2291.5,2291.1,3.2078]
[1725694251985,0.4365,2291.3,2291.1,3.2078]
[1725694252185,0.43651,2291.2,2291.0,3.4132]
[1725694252381,0.43651,2291.3,2291.1,3.2078]
[1725694252889,0.43651,2291.2,2291.1,3.2078]
[1725694253086,0.43651,2291.2,2290.8,3.2078]
[1725694253087,0.43657,2290.9,2290.8,3.2078]
[1725694253282,4.11,2292.9,2291.5,1.09115]
[1725694253481,4.11,2293.8,2292.8,6.2278]
[1725694253686,3.2078,2293.7,2293.3,3.2078]
[1725694253886,6.2278,2293.4,2292.7,3.2078]
[1725694254092,0.43618,2293.0,2292.7,3.2078]
[1725694254286,3.2078,2293.7,2292.7,3.2078]
[1725694254491,0.3831,2293.3,2293.1,3.2078]
[1725694254687,8.07236642,2293.7,2293.1,6.2278]
[1725694254688,4.86456642,2293.7,2293.1,6.2278]
[1725694254892,0.43608,2293.5,2293.1,6.2278]
[1725694255190,0.43608,2293.5,2292.5,0.3637]
[1725694255191,7.5678,2293.7,2292.8,3.2078]
[1725694255387,0.43611,2293.4,2292.7,3.2078]
[1725694255701,4.49317,2293.8,2292.6,3.02]
[1725694255702,0.43611,2293.3,2293.0,3.2078]
[1725694256010,0.4361,2293.4,2293.0,3.2078]
[1725694256186,4.74733317,2293.6,2293.0,3.2078]
[1725694256390,0.7591,2293.5,2293.0,3.2078]
[1725694256791,0.4361,2293.4,2293.0,3.2078]
[1725694257293,0.7591,2293.5,2293.0,3.2078]
[1725694257294,1.19519,2293.5,2293.0,3.2078]
[1725694257600,0.7591,2293.5,2293.0,3.2078]
[1725694257901,0.3832,2293.5,2293.0,3.2078]
[1725694258204,0.43605,2293.7,2293.3,3.2078]
[1725694258688,0.3831,2293.8,2293.3,3.2078]
[1725694259298,4.4932,2294.1,2293.6,3.2078]
[1725694259299,0.43599,2294.0,2293.6,3.2078]
[1725694259491,0.81917,2294.1,2293.6,3.2078]
[1725694259787,0.43598,2294.0,2293.6,3.2078]
[1725694259989,0.43603,2293.8,2293.6,3.2078]
[1725694260194,0.81917,2294.1,2293.6,3.2078]
[1725694260384,0.3832,2294.1,2293.6,3.2078]
[1725694260592,0.43601,2293.9,2293.6,3.2078]
[1725694260788,0.43598,2294.0,2293.6,3.2078]
[1725694261094,0.43597,2294.1,2293.6,3.2078]
[1725694261289,0.3914,2294.2,2293.6,3.2078]
[1725694261490,0.43596,2294.1,2293.7,0.3561]
[1725694261697,0.43609,2293.5,2293.3,3.2078]
[1725694261888,1.09001,2293.9,2293.3,3.2078]
[1725694262395,0.43608,2293.5,2293.3,3.2078]
[1725694262695,1.09005,2293.8,2293.3,3.2078]
[1725694262889,0.43609,2293.5,2293.3,3.2078]
[1725694263093,0.43606,2293.6,2293.3,3.2078]
[1725694263292,0.79513,2293.8,2293.3,3.2078]
[1725694263510,0.43604,2293.7,2293.6,3.2078]
[1725694263797,0.3684,2294.4,2293.6,6.2278]
[1725694263995,0.43593,2294.3,2293.9,3.2078]
[1725694264199,0.3583,2294.5,2294.2,3.2078]
[1725694264392,3.02,2294.8,2294.2,3.2078]
[1725694264695,3.2078,2294.9,2294.3,0.3888]
[1725694264696,0.43587,2294.6,2294.3,0.3888]
[1725694264892,0.43589,2294.5,2294.3,0.3888]
[1725694265094,0.43592,2294.3,2294.2,3.2078]
[1725694265289,3.02,2294.6,2293.9,3.2078]
[1725694265496,0.43598,2294.0,2293.9,3.2078]
[1725694265885,0.43598,2294.0,2293.9,7.567]
[1725694266187,0.43598,2294.0,2293.9,3.2078]
[1725694266491,8.65696,2294.0,2293.2,3.2078]
[1725694266692,0.7487,2293.9,2293.2,6.2278]
[1725694267089,0.43603,2293.8,2293.2,6.66393]
[1725694267386,0.436,2293.9,2293.5,3.2078]
[1725694267588,0.43603,2293.8,2293.6,0.7574]
[1725694267993,0.43603,2293.8,2293.7,4.36]
[1725694268497,0.43603,2293.8,2293.6,0.7574]
[1725694268698,0.7479,2294.4,2293.6,0.7574]
[1725694268892,0.7479,2294.4,2293.8,3.2078]
[1725694269199,0.3902,2294.4,2293.8,3.2078]
[1725694269398,1.08982,2294.3,2293.8,3.2078]
[1725694269594,0.43599,2294.0,2293.8,3.2078]
[1725694269792,0.43597,2294.1,2293.8,3.2078]
[1725694270892,0.43595,2294.2,2293.8,3.2078]
[1725694271492,0.43597,2294.1,2293.8,3.2078]
[1725694271691,1.48001,2294.4,2293.8,3.2078]
[1725694271889,0.436,2293.9,2293.8,3.2078]
[1725694272093,0.43603,2293.8,2293.6,0.7574]
[1725694272295,0.43604,2293.7,2293.6,0.7574]
[1725694272495,0.43602,2293.8,2293.6,0.7574]
[1725694272693,0.43603,2293.8,2293.6,0.7574]
[1725694272896,0.43604,2293.7,2293.6,0.7574]
[1725694273297,0.43603,2293.8,2293.6,5.1174]
[1725694273502,0.43601,2293.9,2293.6,0.7574]
[1725694273692,0.43601,2293.9,2293.8,3.2078]
[1725694273893,0.3902,2294.4,2293.8,3.2078]
[1725694274093,0.43604,2293.7,2293.6,0.7574]